[Event "Titled Tuesday Blitz June 07 Late 2022"]
[White "Xiong, Jeffery"]
[Black "Guseinov, Gadir"]
[WhiteFideId "2047640"]
[BlackFideId "13401378"]
[WhiteElo "2714"]
[BlackElo "2581"]
[Result "1-0"]
[Round "03"]
[TimeControl "180+1"]
[Date "2022.06.07"]
[WhiteClock "0:00:15"]
[BlackClock "0:00:01"]

1. e4 {[%clk 0:03:00]}  c5 {[%clk 0:02:59]} 2. Nf3 {[%clk 0:03:01]}  g6 {[%clk 0:03:00]} 3. d4 {[%clk 0:03:00]}  cxd4 {[%clk 0:03:00]} 4. Nxd4 {[%clk 0:03:01]}  Nc6 {[%clk 0:03:00]} 5. c4 {[%clk 0:03:01]}  Nf6 {[%clk 0:03:00]} 6. Nc3 {[%clk 0:03:01]}  Nxd4 {[%clk 0:03:00]} 7. Qxd4 {[%clk 0:03:01]}  d6 {[%clk 0:03:01]} 8. Be2 {[%clk 0:03:00]}  Bg7 {[%clk 0:03:01]} 9. Bg5 {[%clk 0:03:01]}  O-O {[%clk 0:03:01]} 10. O-O {[%clk 0:03:01]}  Be6 {[%clk 0:02:54]} 11. Qe3 {[%clk 0:02:57]}  Qb6 {[%clk 0:02:53]} 12. Qxb6 {[%clk 0:02:56]}  axb6 {[%clk 0:02:53]} 13. Bd2 {[%clk 0:02:15]}  Rfc8 {[%clk 0:02:48]} 14. b3 {[%clk 0:02:15]}  Nd7 {[%clk 0:02:43]} 15. Rfc1 {[%clk 0:02:15]}  Nc5 {[%clk 0:02:34]} 16. f3 {[%clk 0:02:15]}  b5 {[%clk 0:02:19]} 17. cxb5 {[%clk 0:02:15]}  Nxb3 {[%clk 0:02:18]} 18. axb3 {[%clk 0:02:16]}  Rxa1 {[%clk 0:02:18]} 19. Rxa1 {[%clk 0:02:14]}  Bxc3 {[%clk 0:02:18]} 20. Bxc3 {[%clk 0:02:07]}  Rxc3 {[%clk 0:02:19]} 21. Ra7 {[%clk 0:02:07]}  Rxb3 {[%clk 0:01:57]} 22. Rxb7 {[%clk 0:02:07]}  Kf8 {[%clk 0:01:50]} 23. Rb8+ {[%clk 0:01:56]}  Kg7 {[%clk 0:01:50]} 24. b6 {[%clk 0:01:57]}  Rb1+ {[%clk 0:01:23]} 25. Kf2 {[%clk 0:01:56]}  Rb2 {[%clk 0:01:23]} 26. Ke3 {[%clk 0:01:51]}  d5 {[%clk 0:01:20]} 27. Bd3 {[%clk 0:01:14]}  dxe4 {[%clk 0:01:12]} 28. Bxe4 {[%clk 0:01:15]}  f5 {[%clk 0:01:10]} 29. Bc6 {[%clk 0:01:15]}  Rc2 {[%clk 0:00:59]} 30. b7 {[%clk 0:00:53]}  Rxc6 {[%clk 0:00:58]} 31. Rd8 {[%clk 0:00:45]}  Rb6 {[%clk 0:00:55]} 32. b8=Q {[%clk 0:00:46]}  Rxb8 {[%clk 0:00:55]} 33. Rxb8 {[%clk 0:00:47]}  Kf6 {[%clk 0:00:47]} 34. Rb6 {[%clk 0:00:41]}  g5 {[%clk 0:00:42]} 35. Kd4 {[%clk 0:00:38]}  f4 {[%clk 0:00:37]} 36. Ke4 {[%clk 0:00:38]}  Kf7 {[%clk 0:00:17]} 37. Ke5 {[%clk 0:00:39]}  Bc8 {[%clk 0:00:16]} 38. h4 {[%clk 0:00:27]}  gxh4 {[%clk 0:00:14]} 39. Kxf4 {[%clk 0:00:28]}  h3 {[%clk 0:00:13]} 40. g4 {[%clk 0:00:28]}  h5 {[%clk 0:00:03]} 41. Rh6 {[%clk 0:00:14]}  hxg4 {[%clk 0:00:01]} 42. fxg4 {[%clk 0:00:15]} 1-0


[Site "https://www.chess.com"]

[Event "Titled Tuesday Blitz June 07 Late 2022"]
[White "Yuan, Qingyu"]
[Black "Sadhwani, Raunak"]
[WhiteFideId "8609772"]
[BlackFideId "35093487"]
[WhiteElo "2359"]
[BlackElo "2616"]
[Result "1-0"]
[Round "03"]
[TimeControl "180+1"]
[Date "2022.06.07"]
[WhiteClock "0:00:10"]
[BlackClock "0:00:01"]

1. e4 {[%clk 0:03:00]}  c5 {[%clk 0:03:00]} 2. Nf3 {[%clk 0:02:59]}  Nc6 {[%clk 0:03:01]} 3. Bc4 {[%clk 0:02:59]}  e6 {[%clk 0:03:00]} 4. O-O {[%clk 0:02:59]}  a6 {[%clk 0:02:59]} 5. d4 {[%clk 0:02:55]}  b5 {[%clk 0:02:55]} 6. d5 {[%clk 0:02:51]}  bxc4 {[%clk 0:02:48]} 7. dxc6 {[%clk 0:02:51]}  d6 {[%clk 0:02:48]} 8. Re1 {[%clk 0:02:30]}  Qc7 {[%clk 0:02:48]} 9. Nbd2 {[%clk 0:02:30]}  c3 {[%clk 0:02:46]} 10. bxc3 {[%clk 0:02:21]}  Qxc6 {[%clk 0:02:46]} 11. c4 {[%clk 0:02:19]}  e5 {[%clk 0:02:41]} 12. Nf1 {[%clk 0:02:13]}  Nf6 {[%clk 0:02:40]} 13. Qd3 {[%clk 0:02:02]}  Be7 {[%clk 0:02:39]} 14. Bg5 {[%clk 0:02:01]}  Be6 {[%clk 0:02:36]} 15. Bxf6 {[%clk 0:02:00]}  Bxf6 {[%clk 0:02:37]} 16. Ne3 {[%clk 0:02:00]}  O-O {[%clk 0:02:35]} 17. Reb1 {[%clk 0:01:58]}  Rab8 {[%clk 0:02:12]} 18. Rb3 {[%clk 0:01:57]}  Rxb3 {[%clk 0:02:09]} 19. axb3 {[%clk 0:01:55]}  g6 {[%clk 0:02:10]} 20. Nd5 {[%clk 0:01:50]}  Bd8 {[%clk 0:02:09]} 21. Nd2 {[%clk 0:01:27]}  f5 {[%clk 0:02:04]} 22. Nc3 {[%clk 0:01:21]}  Kh8 {[%clk 0:01:39]} 23. Nf1 {[%clk 0:01:21]}  f4 {[%clk 0:01:35]} 24. Nd2 {[%clk 0:01:18]}  g5 {[%clk 0:01:33]} 25. h3 {[%clk 0:01:04]}  h5 {[%clk 0:01:32]} 26. Kf1 {[%clk 0:01:00]}  Kg7 {[%clk 0:01:31]} 27. Ke2 {[%clk 0:00:59]}  g4 {[%clk 0:01:30]} 28. hxg4 {[%clk 0:00:59]}  hxg4 {[%clk 0:01:31]} 29. Rh1 {[%clk 0:00:58]}  Bg5 {[%clk 0:01:20]} 30. f3 {[%clk 0:00:42]}  g3 {[%clk 0:01:17]} 31. Nd5 {[%clk 0:00:42]}  Rh8 {[%clk 0:01:14]} 32. Rxh8 {[%clk 0:00:42]}  Kxh8 {[%clk 0:01:15]} 33. Nb1 {[%clk 0:00:41]}  Kg7 {[%clk 0:01:13]} 34. Nbc3 {[%clk 0:00:40]}  Bd8 {[%clk 0:01:11]} 35. Qd1 {[%clk 0:00:39]}  Qe8 {[%clk 0:01:04]} 36. Qh1 {[%clk 0:00:38]}  Qg6 {[%clk 0:00:42]} 37. Na4 {[%clk 0:00:28]}  Qg5 {[%clk 0:00:38]} 38. Nac3 {[%clk 0:00:27]}  Bf7 {[%clk 0:00:34]} 39. Kd3 {[%clk 0:00:27]}  Bh5 {[%clk 0:00:34]} 40. Ke2 {[%clk 0:00:26]}  Ba5 {[%clk 0:00:34]} 41. Nb1 {[%clk 0:00:18]}  Bd8 {[%clk 0:00:29]} 42. Nbc3 {[%clk 0:00:18]}  Be8 {[%clk 0:00:21]} 43. Qh3 {[%clk 0:00:18]}  Qh4 {[%clk 0:00:09]} 44. Qe6 {[%clk 0:00:16]}  Bh5 {[%clk 0:00:05]} 45. Qxd6 {[%clk 0:00:16]}  Bxf3+ {[%clk 0:00:05]} 46. gxf3 {[%clk 0:00:16]}  Qh2+ {[%clk 0:00:05]} 47. Kd3 {[%clk 0:00:16]}  g2 {[%clk 0:00:06]} 48. Qxe5+ {[%clk 0:00:13]}  Kg8 {[%clk 0:00:05]} 49. Qe8+ {[%clk 0:00:13]}  Kg7 {[%clk 0:00:05]} 50. Qd7+ {[%clk 0:00:14]}  Kh6 {[%clk 0:00:05]} 51. Qe6+ {[%clk 0:00:13]}  Kh5 {[%clk 0:00:04]} 52. Qf5+ {[%clk 0:00:13]}  Kh6 {[%clk 0:00:04]} 53. Qe6+ {[%clk 0:00:14]}  Kh5 {[%clk 0:00:04]} 54. Qf7+ {[%clk 0:00:14]}  Kh6 {[%clk 0:00:04]} 55. Qf8+ {[%clk 0:00:15]}  Kh7 {[%clk 0:00:04]} 56. Qf7+ {[%clk 0:00:15]}  Kh6 {[%clk 0:00:04]} 57. Ne2 {[%clk 0:00:15]}  Bg5 {[%clk 0:00:03]} 58. Qe6+ {[%clk 0:00:11]}  Kh7 {[%clk 0:00:03]} 59. Qg4 {[%clk 0:00:12]}  Qh1 {[%clk 0:00:02]} 60. Kd2 {[%clk 0:00:12]}  Kh6 {[%clk 0:00:02]} 61. e5 {[%clk 0:00:12]}  Qf1 {[%clk 0:00:01]} 62. Qh3+ {[%clk 0:00:12]}  Kg6 {[%clk 0:00:01]} 63. Ndxf4+ {[%clk 0:00:12]}  Kg7 {[%clk 0:00:01]} 64. Qg4 {[%clk 0:00:10]} 1-0


[Site "https://www.chess.com"]

[Event "Titled Tuesday Blitz June 07 Late 2022"]
[White "Zhigalko, Sergei"]
[Black "Mikhailov, Viacheslav"]
[WhiteFideId "13502956"]
[BlackFideId "4187369"]
[WhiteElo "2662"]
[BlackElo "2381"]
[Result "1-0"]
[Round "03"]
[TimeControl "180+1"]
[Date "2022.06.07"]
[WhiteClock "0:00:03"]
[BlackClock "0:00:05"]

1. e4 {[%clk 0:03:00]}  d6 {[%clk 0:02:59]} 2. d4 {[%clk 0:03:00]}  Nf6 {[%clk 0:03:00]} 3. Nc3 {[%clk 0:03:01]}  g6 {[%clk 0:03:00]} 4. Nf3 {[%clk 0:03:00]}  Bg7 {[%clk 0:03:01]} 5. h3 {[%clk 0:03:01]}  O-O {[%clk 0:03:01]} 6. Be3 {[%clk 0:03:01]}  c6 {[%clk 0:03:01]} 7. a4 {[%clk 0:03:01]}  b6 {[%clk 0:03:02]} 8. Bd3 {[%clk 0:03:01]}  Ba6 {[%clk 0:03:02]} 9. O-O {[%clk 0:03:00]}  Bxd3 {[%clk 0:03:02]} 10. cxd3 {[%clk 0:03:01]}  c5 {[%clk 0:03:00]} 11. Qd2 {[%clk 0:02:58]}  Nc6 {[%clk 0:02:59]} 12. d5 {[%clk 0:02:57]}  Na5 {[%clk 0:02:58]} 13. Rad1 {[%clk 0:02:56]}  a6 {[%clk 0:02:41]} 14. Bh6 {[%clk 0:02:48]}  Nd7 {[%clk 0:02:27]} 15. Bxg7 {[%clk 0:02:45]}  Kxg7 {[%clk 0:02:28]} 16. d4 {[%clk 0:02:43]}  Qc7 {[%clk 0:02:14]} 17. Qe2 {[%clk 0:02:25]}  Rfc8 {[%clk 0:01:52]} 18. Rfe1 {[%clk 0:02:22]}  Nb3 {[%clk 0:01:52]} 19. Qe3 {[%clk 0:02:03]}  cxd4 {[%clk 0:01:45]} 20. Nxd4 {[%clk 0:02:04]}  Nxd4 {[%clk 0:01:46]} 21. Rxd4 {[%clk 0:02:02]}  Qc5 {[%clk 0:01:36]} 22. f4 {[%clk 0:01:46]}  b5 {[%clk 0:01:32]} 23. axb5 {[%clk 0:01:36]}  axb5 {[%clk 0:01:33]} 24. e5 {[%clk 0:01:36]}  Nb6 {[%clk 0:01:15]} 25. Ne4 {[%clk 0:01:30]}  Nxd5 {[%clk 0:01:09]} 26. Qf2 {[%clk 0:01:19]}  Qc6 {[%clk 0:00:59]} 27. exd6 {[%clk 0:01:18]}  exd6 {[%clk 0:01:00]} 28. f5 {[%clk 0:01:00]}  Ra4 {[%clk 0:00:59]} 29. Red1 {[%clk 0:00:43]}  Re8 {[%clk 0:00:22]} 30. Rxd5 {[%clk 0:00:06]}  Raxe4 {[%clk 0:00:19]} 31. Rxd6 {[%clk 0:00:06]}  Qc7 {[%clk 0:00:04]} 32. f6+ {[%clk 0:00:02]}  Kg8 {[%clk 0:00:04]} 33. Rd7 {[%clk 0:00:02]}  Re1+ {[%clk 0:00:02]} 34. Rxe1 {[%clk 0:00:02]}  Rxe1+ {[%clk 0:00:03]} 35. Qxe1 {[%clk 0:00:02]}  Qxd7 {[%clk 0:00:04]} 36. Qe7 {[%clk 0:00:03]}  Qc8 {[%clk 0:00:02]} 37. b4 {[%clk 0:00:02]}  h5 {[%clk 0:00:02]} 38. Kf2 {[%clk 0:00:02]}  Qf5+ {[%clk 0:00:02]} 39. Ke3 {[%clk 0:00:02]}  Qg5+ {[%clk 0:00:02]} 40. Kd4 {[%clk 0:00:02]}  Qf4+ {[%clk 0:00:02]} 41. Kc5 {[%clk 0:00:03]}  Qc4+ {[%clk 0:00:03]} 42. Kb6 {[%clk 0:00:03]}  Kh7 {[%clk 0:00:02]} 43. Ka5 {[%clk 0:00:02]}  Qa2+ {[%clk 0:00:02]} 44. Kxb5 {[%clk 0:00:02]}  Qxg2 {[%clk 0:00:02]} 45. Qxf7+ {[%clk 0:00:02]}  Kh6 {[%clk 0:00:03]} 46. Qf8+ {[%clk 0:00:02]}  Kg5 {[%clk 0:00:03]} 47. f7 {[%clk 0:00:02]}  Qb7+ {[%clk 0:00:04]} 48. Ka5 {[%clk 0:00:02]}  Qa7+ {[%clk 0:00:04]} 49. Kb5 {[%clk 0:00:02]}  Qb7+ {[%clk 0:00:05]} 50. Kc4 {[%clk 0:00:03]}  Qc6+ {[%clk 0:00:05]} 51. Qc5+ {[%clk 0:00:03]} 1-0


[Site "https://www.chess.com"]

[Event "Titled Tuesday Blitz June 07 Late 2022"]
[White "Bortnyk, Mykola"]
[Black "Slugin, Sergey"]
[WhiteFideId "14120836"]
[BlackFideId "4122569"]
[WhiteElo "2582"]
[BlackElo "2358"]
[Result "1-0"]
[Round "04"]
[TimeControl "180+1"]
[Date "2022.06.07"]
[WhiteClock "0:00:49"]
[BlackClock "0:00:49"]

1. e4 {[%clk 0:03:00]}  e5 {[%clk 0:03:00]} 2. Nf3 {[%clk 0:02:58]}  Nc6 {[%clk 0:03:00]} 3. Bc4 {[%clk 0:02:58]}  Bc5 {[%clk 0:03:00]} 4. b4 {[%clk 0:02:58]}  Bxb4 {[%clk 0:03:00]} 5. c3 {[%clk 0:02:59]}  Ba5 {[%clk 0:03:00]} 6. d4 {[%clk 0:02:59]}  d6 {[%clk 0:03:01]} 7. O-O {[%clk 0:02:58]}  Bg4 {[%clk 0:02:49]} 8. Bb5 {[%clk 0:02:32]}  a6 {[%clk 0:02:33]} 9. Bxc6+ {[%clk 0:02:28]}  bxc6 {[%clk 0:02:34]} 10. dxe5 {[%clk 0:02:15]}  Ne7 {[%clk 0:02:30]} 11. Ba3 {[%clk 0:02:02]}  Bxf3 {[%clk 0:01:47]} 12. Qxf3 {[%clk 0:02:00]}  O-O {[%clk 0:01:48]} 13. Rd1 {[%clk 0:01:55]}  d5 {[%clk 0:01:45]} 14. exd5 {[%clk 0:01:48]}  cxd5 {[%clk 0:01:41]} 15. Bxe7 {[%clk 0:01:43]}  Qxe7 {[%clk 0:01:42]} 16. Rxd5 {[%clk 0:01:43]}  Bb6 {[%clk 0:01:38]} 17. Nd2 {[%clk 0:01:41]}  c6 {[%clk 0:01:34]} 18. Rd6 {[%clk 0:01:38]}  Qxe5 {[%clk 0:01:27]} 19. Rxc6 {[%clk 0:01:24]}  Ba5 {[%clk 0:00:59]} 20. Nb3 {[%clk 0:01:02]}  Rfc8 {[%clk 0:00:49]} 21. Rc5 {[%clk 0:00:49]} 1-0


[Site "https://www.chess.com"]

[Event "Titled Tuesday Blitz June 07 Late 2022"]
[White "Chigaev, Maksim"]
[Black "Bjelobrk, Igor"]
[WhiteFideId "4108116"]
[BlackFideId "4300726"]
[WhiteElo "2457"]
[BlackElo "2335"]
[Result "0-1"]
[Round "04"]
[TimeControl "180+1"]
[Date "2022.06.07"]
[WhiteClock "0:00:11"]
[BlackClock "0:01:35"]

1. d4 {[%clk 0:02:58]}  d5 {[%clk 0:02:59]} 2. Nf3 {[%clk 0:02:58]}  Nf6 {[%clk 0:02:58]} 3. c4 {[%clk 0:02:59]}  e6 {[%clk 0:02:58]} 4. g3 {[%clk 0:02:59]}  dxc4 {[%clk 0:02:52]} 5. Bg2 {[%clk 0:02:59]}  c6 {[%clk 0:02:51]} 6. a4 {[%clk 0:02:46]}  c5 {[%clk 0:02:43]} 7. O-O {[%clk 0:02:41]}  Nc6 {[%clk 0:02:42]} 8. dxc5 {[%clk 0:02:32]}  Bxc5 {[%clk 0:02:41]} 9. Qxd8+ {[%clk 0:02:29]}  Kxd8 {[%clk 0:02:42]} 10. Nbd2 {[%clk 0:02:29]}  Nd5 {[%clk 0:02:36]} 11. Nxc4 {[%clk 0:02:22]}  f6 {[%clk 0:02:36]} 12. e4 {[%clk 0:02:16]}  Ndb4 {[%clk 0:02:23]} 13. e5 {[%clk 0:02:14]}  Ke7 {[%clk 0:02:22]} 14. Bd2 {[%clk 0:02:14]}  b6 {[%clk 0:02:01]} 15. exf6+ {[%clk 0:01:45]}  gxf6 {[%clk 0:02:00]} 16. Nfe5 {[%clk 0:01:36]}  fxe5 {[%clk 0:01:48]} 17. Bxb4 {[%clk 0:01:36]}  Nxb4 {[%clk 0:01:48]} 18. Bxa8 {[%clk 0:01:24]}  Ba6 {[%clk 0:01:48]} 19. Be4 {[%clk 0:01:18]}  Bxc4 {[%clk 0:01:47]} 20. Rfd1 {[%clk 0:01:19]}  Bd5 {[%clk 0:01:48]} 21. Bxd5 {[%clk 0:01:13]}  exd5 {[%clk 0:01:47]} 22. Kg2 {[%clk 0:01:14]}  Rf8 {[%clk 0:01:47]} 23. f3 {[%clk 0:01:11]}  Kd6 {[%clk 0:01:46]} 24. Rac1 {[%clk 0:01:09]}  a5 {[%clk 0:01:46]} 25. h4 {[%clk 0:01:02]}  d4 {[%clk 0:01:46]} 26. Rd2 {[%clk 0:00:58]}  Nd5 {[%clk 0:01:46]} 27. b3 {[%clk 0:00:18]}  Ne3+ {[%clk 0:01:45]} 28. Kf2 {[%clk 0:00:15]}  Kd5 {[%clk 0:01:44]} 29. Ke2 {[%clk 0:00:10]}  e4 {[%clk 0:01:40]} 30. f4 {[%clk 0:00:11]}  d3+ {[%clk 0:01:36]} 31. Rxd3+ {[%clk 0:00:09]}  exd3+ {[%clk 0:01:36]} 32. Kxd3 {[%clk 0:00:10]}  Nf5 {[%clk 0:01:36]} 33. g4 {[%clk 0:00:09]}  Nxh4 {[%clk 0:01:36]} 34. f5 {[%clk 0:00:10]}  Nf3 {[%clk 0:01:35]} 35. Rh1 {[%clk 0:00:10]}  Ne5+ {[%clk 0:01:35]} 36. Kc2 {[%clk 0:00:10]}  Nxg4 {[%clk 0:01:36]} 37. Rxh7 {[%clk 0:00:10]}  Rxf5 {[%clk 0:01:36]} 38. Rh5 {[%clk 0:00:11]}  Rxh5 {[%clk 0:01:35]} 0-1


[Site "https://www.chess.com"]

[Event "Titled Tuesday Blitz June 07 Late 2022"]
[White "Domingo Nunez, Ruben"]
[Black "Urazayev, Arystanbek"]
[WhiteFideId "22245570"]
[BlackFideId "13709810"]
[WhiteElo "2376"]
[BlackElo "2422"]
[Result "0-1"]
[Round "04"]
[TimeControl "180+1"]
[Date "2022.06.07"]
[WhiteClock "0:00:04"]
[BlackClock "0:00:19"]

1. c4 {[%clk 0:03:00]}  c6 {[%clk 0:03:00]} 2. g3 {[%clk 0:03:00]}  d5 {[%clk 0:03:00]} 3. Bg2 {[%clk 0:03:00]}  Nf6 {[%clk 0:03:01]} 4. b3 {[%clk 0:03:01]}  e6 {[%clk 0:03:01]} 5. Bb2 {[%clk 0:03:01]}  Be7 {[%clk 0:03:01]} 6. Nc3 {[%clk 0:03:01]}  O-O {[%clk 0:03:02]} 7. Nf3 {[%clk 0:03:02]}  Nbd7 {[%clk 0:03:02]} 8. O-O {[%clk 0:03:02]}  a5 {[%clk 0:03:01]} 9. Qc2 {[%clk 0:02:59]}  b6 {[%clk 0:02:59]} 10. d3 {[%clk 0:02:53]}  Bb7 {[%clk 0:02:57]} 11. e4 {[%clk 0:02:51]}  dxe4 {[%clk 0:02:49]} 12. dxe4 {[%clk 0:02:52]}  e5 {[%clk 0:02:40]} 13. Rfd1 {[%clk 0:02:45]}  Qc7 {[%clk 0:02:40]} 14. Nd2 {[%clk 0:02:33]}  Bc5 {[%clk 0:02:35]} 15. h3 {[%clk 0:02:30]}  Rfd8 {[%clk 0:02:32]} 16. Nf1 {[%clk 0:02:28]}  Nf8 {[%clk 0:02:31]} 17. Ne2 {[%clk 0:02:25]}  Ne6 {[%clk 0:02:29]} 18. Ne3 {[%clk 0:02:22]}  Bxe3 {[%clk 0:02:17]} 19. fxe3 {[%clk 0:02:23]}  Nc5 {[%clk 0:02:03]} 20. Rf1 {[%clk 0:02:22]}  Ne8 {[%clk 0:01:51]} 21. a3 {[%clk 0:02:07]}  a4 {[%clk 0:01:46]} 22. b4 {[%clk 0:02:05]}  Nb3 {[%clk 0:01:46]} 23. Rad1 {[%clk 0:02:01]}  f6 {[%clk 0:01:46]} 24. Bc3 {[%clk 0:01:58]}  Rxd1 {[%clk 0:01:46]} 25. Rxd1 {[%clk 0:01:53]}  Rd8 {[%clk 0:01:46]} 26. Nc1 {[%clk 0:01:37]}  Rxd1+ {[%clk 0:01:46]} 27. Qxd1 {[%clk 0:01:38]}  Nxc1 {[%clk 0:01:47]} 28. Qxc1 {[%clk 0:01:38]}  Nd6 {[%clk 0:01:47]} 29. c5 {[%clk 0:01:16]}  bxc5 {[%clk 0:01:47]} 30. bxc5 {[%clk 0:01:16]}  Nb5 {[%clk 0:01:48]} 31. Bb4 {[%clk 0:01:15]}  Qf7 {[%clk 0:01:29]} 32. Bf1 {[%clk 0:01:15]}  Qd7 {[%clk 0:01:18]} 33. Qc2 {[%clk 0:01:12]}  h6 {[%clk 0:00:52]} 34. Qxa4 {[%clk 0:01:11]}  Kh7 {[%clk 0:00:48]} 35. Qc2 {[%clk 0:01:06]}  Nc7 {[%clk 0:00:47]} 36. Qd3 {[%clk 0:00:50]}  Qf7 {[%clk 0:00:47]} 37. Qc4 {[%clk 0:00:46]}  Qg6 {[%clk 0:00:47]} 38. Kf2 {[%clk 0:00:42]}  Ba6 {[%clk 0:00:47]} 39. Qc1 {[%clk 0:00:20]}  Bxf1 {[%clk 0:00:47]} 40. Qxf1 {[%clk 0:00:20]}  Qxe4 {[%clk 0:00:46]} 41. Qg2 {[%clk 0:00:13]}  Qc2+ {[%clk 0:00:41]} 42. Kg1 {[%clk 0:00:13]}  Qc1+ {[%clk 0:00:41]} 43. Kh2 {[%clk 0:00:13]}  Nd5 {[%clk 0:00:37]} 44. Qd2 {[%clk 0:00:11]}  Qc4 {[%clk 0:00:35]} 45. Kg2 {[%clk 0:00:10]}  Qe4+ {[%clk 0:00:32]} 46. Kf2 {[%clk 0:00:11]}  h5 {[%clk 0:00:31]} 47. Qe2 {[%clk 0:00:11]}  Kg6 {[%clk 0:00:30]} 48. Qf3 {[%clk 0:00:11]}  Qc2+ {[%clk 0:00:30]} 49. Qe2 {[%clk 0:00:11]}  Qf5+ {[%clk 0:00:30]} 50. Qf3 {[%clk 0:00:12]}  Qxh3 {[%clk 0:00:30]} 51. e4 {[%clk 0:00:12]}  Ne7 {[%clk 0:00:26]} 52. a4 {[%clk 0:00:11]}  Qe6 {[%clk 0:00:26]} 53. Qe2 {[%clk 0:00:10]}  Qb3 {[%clk 0:00:23]} 54. Bd2 {[%clk 0:00:06]}  Qxa4 {[%clk 0:00:23]} 55. g4 {[%clk 0:00:06]}  Qd4+ {[%clk 0:00:21]} 56. Kg3 {[%clk 0:00:05]}  hxg4 {[%clk 0:00:18]} 57. Qxg4+ {[%clk 0:00:06]}  Kf7 {[%clk 0:00:18]} 58. Qh5+ {[%clk 0:00:04]}  Ke6 {[%clk 0:00:17]} 59. Qg4+ {[%clk 0:00:03]}  f5 {[%clk 0:00:17]} 60. exf5+ {[%clk 0:00:03]}  Nxf5+ {[%clk 0:00:18]} 61. Kh3 {[%clk 0:00:02]}  Qxd2 {[%clk 0:00:17]} 62. Qg6+ {[%clk 0:00:03]}  Kd5 {[%clk 0:00:17]} 63. Qxf5 {[%clk 0:00:03]}  Qe3+ {[%clk 0:00:18]} 64. Kg4 {[%clk 0:00:03]}  Qe4+ {[%clk 0:00:18]} 65. Kg5 {[%clk 0:00:03]}  Qxf5+ {[%clk 0:00:18]} 66. Kxf5 {[%clk 0:00:04]}  e4 {[%clk 0:00:19]} 0-1


[Site "https://www.chess.com"]

[Event "Titled Tuesday Blitz June 07 Late 2022"]
[White "Hansen, Eric"]
[Black "Shapiro, David"]
[WhiteFideId "2606771"]
[BlackFideId "24133523"]
[WhiteElo "2568"]
[BlackElo "2300"]
[Result "1-0"]
[Round "04"]
[TimeControl "180+1"]
[Date "2022.06.07"]
[WhiteClock "0:01:45"]
[BlackClock "0:00:36"]

1. Nf3 {[%clk 0:03:00]}  Nf6 {[%clk 0:02:59]} 2. b3 {[%clk 0:02:59]}  g6 {[%clk 0:02:59]} 3. Bb2 {[%clk 0:02:59]}  Bg7 {[%clk 0:02:59]} 4. g4 {[%clk 0:02:58]}  d5 {[%clk 0:02:48]} 5. g5 {[%clk 0:02:58]}  Nh5 {[%clk 0:02:49]} 6. Bxg7 {[%clk 0:02:59]}  Nxg7 {[%clk 0:02:50]} 7. c4 {[%clk 0:02:59]}  d4 {[%clk 0:02:46]} 8. d3 {[%clk 0:02:58]}  c5 {[%clk 0:02:45]} 9. Nbd2 {[%clk 0:02:57]}  Nc6 {[%clk 0:02:43]} 10. a3 {[%clk 0:02:54]}  a5 {[%clk 0:02:40]} 11. Ne4 {[%clk 0:02:44]}  b6 {[%clk 0:02:40]} 12. h4 {[%clk 0:02:44]}  Bg4 {[%clk 0:02:33]} 13. Bg2 {[%clk 0:02:44]}  Nh5 {[%clk 0:02:17]} 14. Qd2 {[%clk 0:02:41]}  Qc7 {[%clk 0:02:16]} 15. Nh2 {[%clk 0:02:28]}  Bf5 {[%clk 0:02:03]} 16. Bf3 {[%clk 0:02:25]}  Rd8 {[%clk 0:01:13]} 17. Bxh5 {[%clk 0:02:20]}  gxh5 {[%clk 0:01:14]} 18. Ng3 {[%clk 0:02:20]}  Bg6 {[%clk 0:01:13]} 19. f4 {[%clk 0:02:21]}  e6 {[%clk 0:01:11]} 20. O-O {[%clk 0:02:17]}  O-O {[%clk 0:01:01]} 21. Nf3 {[%clk 0:02:14]}  Rb8 {[%clk 0:00:57]} 22. Rac1 {[%clk 0:02:01]}  b5 {[%clk 0:00:55]} 23. cxb5 {[%clk 0:01:59]}  Rxb5 {[%clk 0:00:56]} 24. a4 {[%clk 0:02:00]}  Rxb3 {[%clk 0:00:52]} 25. Rxc5 {[%clk 0:02:01]}  Qb6 {[%clk 0:00:51]} 26. Rfc1 {[%clk 0:02:01]}  Ne7 {[%clk 0:00:49]} 27. Qxa5 {[%clk 0:01:58]}  Qb8 {[%clk 0:00:35]} 28. Qc7 {[%clk 0:01:50]}  Nd5 {[%clk 0:00:35]} 29. Qxb8 {[%clk 0:01:49]}  Rfxb8 {[%clk 0:00:36]} 30. f5 {[%clk 0:01:45]} 1-0


[Site "https://www.chess.com"]

[Event "Titled Tuesday Blitz June 07 Late 2022"]
[White "Ibarra Jerez, Jose Carlos"]
[Black "Larino Nieto, David"]
[WhiteFideId "2226332"]
[BlackFideId "2256444"]
[WhiteElo "2628"]
[BlackElo "2532"]
[Result "1-0"]
[Round "04"]
[TimeControl "180+1"]
[Date "2022.06.07"]
[WhiteClock "0:00:04"]
[BlackClock "0:00:01"]

1. e4 {[%clk 0:03:00]}  c6 {[%clk 0:02:58]} 2. Nf3 {[%clk 0:02:58]}  d5 {[%clk 0:02:59]} 3. d3 {[%clk 0:02:59]}  Nf6 {[%clk 0:02:59]} 4. e5 {[%clk 0:02:55]}  Nfd7 {[%clk 0:02:59]} 5. d4 {[%clk 0:02:51]}  e6 {[%clk 0:02:59]} 6. c4 {[%clk 0:02:43]}  Be7 {[%clk 0:02:57]} 7. Nc3 {[%clk 0:02:43]}  dxc4 {[%clk 0:02:53]} 8. Bxc4 {[%clk 0:02:42]}  Nb6 {[%clk 0:02:54]} 9. Bd3 {[%clk 0:02:38]}  c5 {[%clk 0:02:51]} 10. dxc5 {[%clk 0:02:33]}  Bxc5 {[%clk 0:02:52]} 11. O-O {[%clk 0:02:30]}  Nc6 {[%clk 0:02:51]} 12. Ne4 {[%clk 0:02:18]}  Be7 {[%clk 0:02:50]} 13. Bf4 {[%clk 0:02:11]}  Nd5 {[%clk 0:02:50]} 14. Bg3 {[%clk 0:02:10]}  O-O {[%clk 0:02:49]} 15. a3 {[%clk 0:02:08]}  a5 {[%clk 0:02:41]} 16. Rc1 {[%clk 0:02:07]}  Qb6 {[%clk 0:02:37]} 17. Qe2 {[%clk 0:01:58]}  Bd7 {[%clk 0:02:34]} 18. h4 {[%clk 0:01:53]}  a4 {[%clk 0:02:04]} 19. Neg5 {[%clk 0:01:48]}  g6 {[%clk 0:02:00]} 20. Qe4 {[%clk 0:01:35]}  Kg7 {[%clk 0:01:28]} 21. h5 {[%clk 0:01:32]}  Qd8 {[%clk 0:01:04]} 22. Nxh7 {[%clk 0:01:17]}  Kxh7 {[%clk 0:01:01]} 23. hxg6+ {[%clk 0:01:17]}  Kg7 {[%clk 0:01:01]} 24. gxf7 {[%clk 0:01:14]}  Rh8 {[%clk 0:01:02]} 25. Qg6+ {[%clk 0:01:01]}  Kf8 {[%clk 0:01:01]} 26. Rc4 {[%clk 0:01:00]}  Bf6 {[%clk 0:00:35]} 27. Rg4 {[%clk 0:00:45]}  Nce7 {[%clk 0:00:28]} 28. Qe4 {[%clk 0:00:23]}  Bg7 {[%clk 0:00:28]} 29. Bh4 {[%clk 0:00:17]}  Qb6 {[%clk 0:00:22]} 30. Bxe7+ {[%clk 0:00:08]}  Nxe7 {[%clk 0:00:23]} 31. Nh4 {[%clk 0:00:03]}  Kxf7 {[%clk 0:00:16]} 32. Ng6 {[%clk 0:00:04]}  Rh6 {[%clk 0:00:11]} 33. Nxe7 {[%clk 0:00:04]}  Rah8 {[%clk 0:00:11]} 34. g3 {[%clk 0:00:04]}  Rh1+ {[%clk 0:00:08]} 35. Kg2 {[%clk 0:00:05]}  R8h2+ {[%clk 0:00:06]} 36. Kf3 {[%clk 0:00:05]}  Rxf1 {[%clk 0:00:04]} 37. Qg6+ {[%clk 0:00:04]}  Kxe7 {[%clk 0:00:05]} 38. Qg5+ {[%clk 0:00:02]}  Ke8 {[%clk 0:00:03]} 39. Bg6+ {[%clk 0:00:02]}  Kf8 {[%clk 0:00:02]} 40. Rf4+ {[%clk 0:00:02]}  Kg8 {[%clk 0:00:01]} 41. Bf7+ {[%clk 0:00:03]}  Kh8 {[%clk 0:00:01]} 42. Rh4+ {[%clk 0:00:04]} 1-0


[Site "https://www.chess.com"]